Workbook

Sheet 1.Conjunto de datos (remuneraci
A1: Numeración | B1: PUESTO INSTITUCIONAL | C1: Régimen laboral al que pertenece | D1: Número de partida presupuestaria | E1: Grado jerárquico o escala al que pertenece el puesto | F1: Remuneración mensual unificada | G1: Remuneración unificada (anual) | H1: Décimo Tercera Remuneración | I1: Décima Cuarta Remuneración | J1: Horas suplementarias y extraordinarias | K1: Encargos y subrogaciones | L1: Total ingresos adicionales
A2: 1 | B2: PROCURADOR SINDICO | C2: 05-SERVIDOR/FUNCIONARIO SERVICIO PÚBLICO | D2: 5.1.01.05 | E2: N/A | F2: 1670.00 | G2: =F2*12 -> 20,040.00 | H2: =F2/12 -> 139.17 | I2: =470/12 -> 39.17 | J2: 0.00 | K2: 0.00 | L2: =F2+H2+I2 -> 1848.33
A3: 2 | B3: CONCEJAL URBANO | C3: 05-SERVIDOR/FUNCIONARIO SERVICIO PÚBLICO | D3: 5.1.01.05 | E3: J/N | F3: 1750.00 | G3: =F3*12 -> 21,000.00 | H3: =F3/12 -> 145.83 | I3: =470/12 -> 39.17 | J3: 0.00 | K3: 0.00 | L3: =F3+H3+I3 -> 1935.00
A4: 3 | B4: MIEMBRO 1 DE LA JUNTA CANTONAL DE PROTECCION DE DERECHOS | C4: 05-SERVIDOR/FUNCIONARIO SERVICIO PÚBLICO | D4: 7.1.05.10 | E4: N/A | F4: 820.00 | G4: 9,840.00 | H4: 68.33 | I4: 39.17 | J4: 0.00 | K4: 0.00 | L4: 927.50
A5: 4 | B5: ASISTENTE TÉCNICO DE COMUNICACIÓN Y DISEÑO GRÁFICO | C5: 05-SERVIDOR/FUNCIONARIO SERVICIO PÚBLICO | D5: 7.1.05.10 | E5: N/A | F5: 570.00 | G5: 6,840.00 | H5: 47.50 | I5: 39.17 | J5: 0.00 | K5: 0.00 | L5: 656.67
A6: 5 | B6: ANALISTA DE TRABAJO SOCIAL | C6: 05-SERVIDOR/FUNCIONARIO SERVICIO PÚBLICO | D6: 5.1.01.05 | E6: N/A | F6: 820.00 | G6: 9,840.00 | H6: 68.33 | I6: 39.17 | J6: 0.00 | K6: 0.00 | L6: 927.50
A7: 6 | B7: CUIDADORA | C7: 05-SERVIDOR/FUNCIONARIO SERVICIO PÚBLICO | D7: 5.1.01.05 | E7: N/A | F7: 755.00 | G7: 9,060.00 | H7: 62.92 | I7: 39.17 | J7: 0.00 | K7: 0.00 | L7: 857.08
A8: 7 | B8: ASISTENTE TECNICO DE PRESUPUESTO | C8: 05-SERVIDOR/FUNCIONARIO SERVICIO PÚBLICO | D8: 5.1.01.05 | E8: N/A | F8: 622.00 | G8: 7,464.00 | H8: 51.83 | I8: 39.17 | J8: 0.00 | K8: 0.00 | L8: 713.00
A9: 8 | B9: ASISTENTE ADMINISTRATIVO DEL CENTRO DE FAENAMIENTO | C9: 05-SERVIDOR/FUNCIONARIO SERVICIO PÚBLICO | D9: 7.1.01.05 | E9: N/A | F9: 1110.00 | G9: 13,320.00 | H9: 92.50 | I9: 39.17 | J9: 0.00 | K9: 0.00 | L9: 1241.67
A10: 9 | B10: ASISTENTE TECNICO DE AVALUOS Y CATASTROS | C10: 05-SERVIDOR/FUNCIONARIO SERVICIO PÚBLICO | D10: 7.1.05.10 | E10: N/A | F10: 755.00 | G10: 9,060.00 | H10: 62.92 | I10: 39.17 | J10: 0.00 | K10: 0.00 | L10: 857.08
A11: 10 | B11: DIGITALIZADOR DE LA UTMTTTSV | C11: 05-SERVIDOR/FUNCIONARIO SERVICIO PÚBLICO | D11: 5.1.01.05 | E11: N/A | F11: 622.00 | G11: =F11*12 -> 7,464.00 | H11: 51.83 | I11: 39.17 | J11: 0.00 | K11: 0.00 | L11: 713.00
A12: 11 | B12: CUIDADORA | C12: 05-SERVIDOR/FUNCIONARIO SERVICIO PÚBLICO | D12: 7.1.05.10 | E12: N/A | F12: 675.00 | G12: =F12*12 -> 8,100.00 | H12: 56.25 | I12: 39.17 | J12: 0.00 | K12: 0.00 | L12: 770.42
A13: 12 | B13: MEDICO JEFE DE LA USO | C13: 05-SERVIDOR/FUNCIONARIO SERVICIO PÚBLICO | D13: 5.1.01.06 | E13: N/A | F13: 1110.00 | G13: 13,320.00 | H13: 92.50 | I13: 39.17 | J13: 0.00 | K13: 0.00 | L13: 1241.67
A14: 13 | B14: PROSECRETARIA | C14: 05-SERVIDOR/FUNCIONARIO SERVICIO PÚBLICO | D14: 7.1.05.10 | E14: N/A | F14: 755.00 | G14: 9,060.00 | H14: 62.92 | I14: 39.17 | J14: 0.00 | K14: 0.00 | L14: 857.08
A15: 14 | B15: ASITENTE ADMINISTRATIVO DEL CEMENTERIO | C15: 05-SERVIDOR/FUNCIONARIO SERVICIO PÚBLICO | D15: 7.1.05.10 | E15: N/A | F15: 622.00 | G15: 7,464.00 | H15: 51.83 | I15: 39.17 | J15: 0.00 | K15: 0.00 | L15: 713.00
A16: 15 | B16: ANALISTA TÉCNICO PARA OBRAS PÚBLICAS | C16: 05-SERVIDOR/FUNCIONARIO SERVICIO PÚBLICO | D16: 5.1.01.05 | E16: N/A | F16: 1670.00 | G16: 20,040.00 | H16: 139.17 | I16: 39.17 | J16: 0.00 | K16: 0.00 | L16: 1848.33
A17: 16 | B17: PROMOTOR SOCIAL ATENCION DOMICILIARIA PERSONAS ADULTAS | C17: 05-SERVIDOR/FUNCIONARIO SERVICIO PÚBLICO | D17: 5.1.01.05 | E17: N/A | F17: 986.00 | G17: 11,832.00 | H17: 82.17 | I17: 39.17 | J17: 0.00 | K17: 0.00 | L17: 1107.33
A18: 17 | B18: CUIDADORA | C18: 05-SERVIDOR/FUNCIONARIO SERVICIO PÚBLICO | D18: 7.1.05.10 | E18: N/A | F18: 675.00 | G18: 8,100.00 | H18: 56.25 | I18: 39.17 | J18: 0.00 | K18: 0.00 | L18: 770.42
A19: 18 | B19: ASISTENTE ADMINISTRATIVO DE TURISMO | C19: 05-SERVIDOR/FUNCIONARIO SERVICIO PÚBLICO | D19: 7.1.05.10 | E19: N/A | F19: 622.00 | G19: 7,464.00 | H19: 51.83 | I19: 39.17 | J19: 0.00 | K19: 0.00 | L19: 713.00
A20: 19 | B20: AUXILIAR DE SALUD OCUPACIONAL | C20: 05-SERVIDOR/FUNCIONARIO SERVICIO PÚBLICO | D20: 7.1.01.05 | E20: N/A | F20: 755.00 | G20: 9,060.00 | H20: 62.92 | I20: 39.17 | J20: 0.00 | K20: 0.00 | L20: 857.08
A21: 20 | B21: FACILITADORA AHC | C21: 05-SERVIDOR/FUNCIONARIO SERVICIO PÚBLICO | D21: 7.1.05.10 | E21: N/A | F21: 733.00 | G21: 8,796.00 | H21: 61.08 | I21: 39.17 | J21: 0.00 | K21: 0.00 | L21: 833.25
A22: 21 | B22: CUIDADORA | C22: 05-SERVIDOR/FUNCIONARIO SERVICIO PÚBLICO | D22: 7.1.05.10 | E22: N/A | F22: 675.00 | G22: 8,100.00 | H22: 56.25 | I22: 39.17 | J22: 0.00 | K22: 0.00 | L22: 770.42
A23: 22 | B23: TERAPISTA FÍSICO | C23: 05-SERVIDOR/FUNCIONARIO SERVICIO PÚBLICO | D23: =+D22 -> 7.1.05.10 | E23: N/A | F23: 986.00 | G23: 11,832.00 | H23: 82.17 | I23: 39.17 | J23: 0.00 | K23: 0.00 | L23: 1107.33
A24: 23 | B24: CONCEJAL URBANO | C24: 05-SERVIDOR/FUNCIONARIO SERVICIO PÚBLICO | D24: 5.1.01.05 | E24: N/A | F24: 1750.00 | G24: 21,000.00 | H24: 145.83 | I24: 39.17 | J24: 0.00 | K24: 0.00 | L24: 1935.00
A25: 24 | B25: MIEMBRO 2 DE LA JUNTA CANTONAL DE PROTECCION DE DERECHOS. | C25: 05-SERVIDOR/FUNCIONARIO SERVICIO PÚBLICO | D25: 7.1.05.10 | E25: N/A | F25: 755.00 | G25: 9,060.00 | H25: 62.92 | I25: 39.17 | J25: 0.00 | K25: 0.00 | L25: 857.08
A26: 25 | B26: COORDINADOR AMBIENTAL | C26: 05-SERVIDOR/FUNCIONARIO SERVICIO PÚBLICO | D26: 5.1.01.05 | E26: N/A | F26: 755.00 | G26: 9,060.00 | H26: 62.92 | I26: 39.17 | J26: 0.00 | K26: 0.00 | L26: 857.08
A27: 26 | B27: ASISTENTE ADMINISTRATIVO DE OOPP | C27: 05-SERVIDOR/FUNCIONARIO SERVICIO PÚBLICO | D27: 7.1.05.10 | E27: N/A | F27: 570.00 | G27: 6,840.00 | H27: 47.50 | I27: 39.17 | J27: 0.00 | K27: 0.00 | L27: 656.67
A28: 27 | B28: ASISTENTE TECNICO DE PROVEEDURIA | C28: 05-SERVIDOR/FUNCIONARIO SERVICIO PÚBLICO | D28: 7.1.05.10 | E28: N/A | F28: 755.00 | G28: 9,060.00 | H28: 62.92 | I28: 39.17 | J28: 0.00 | K28: 0.00 | L28: 857.08
A29: 28 | B29: RECAUDADOR 1 | C29: 05-SERVIDOR/FUNCIONARIO SERVICIO PÚBLICO | D29: 5.1.01.05 | E29: N/A | F29: 755.00 | G29: 9,060.00 | H29: 62.92 | I29: 39.17 | J29: 0.00 | K29: 0.00 | L29: 857.08
A30: 29 | B30: JEFE FINANCIERO | C30: 05-SERVIDOR/FUNCIONARIO SERVICIO PÚBLICO | D30: 7.1.05.10 | E30: N/A | F30: 1110.00 | G30: 13,320.00 | H30: 92.50 | I30: 39.17 | J30: 0.00 | K30: 0.00 | L30: 1241.67
A31: 30 | B31: RELACIONADOR PUBLICO | C31: 05-SERVIDOR/FUNCIONARIO SERVICIO PÚBLICO | D31: 7.1.05.10 | E31: N/A | F31: 820.00 | G31: 9,840.00 | H31: 68.33 | I31: 39.17 | J31: 0.00 | K31: 0.00 | L31: 927.50
A32: 31 | B32: ANALISTA EN DESARROLLO COMUNITARIO | C32: 05-SERVIDOR/FUNCIONARIO SERVICIO PÚBLICO | D32: 5.1.01.05 | E32: N/A | F32: 820.00 | G32: 9,840.00 | H32: 68.33 | I32: 39.17 | J32: 0.00 | K32: 0.00 | L32: 927.50
A33: 32 | B33: ASISTENTE ADMINISTRATIVO DE PLANIFICACIÓN AVALUOS Y CATÁSTROS | C33: 05-SERVIDOR/FUNCIONARIO SERVICIO PÚBLICO | D33: 7.1.05.10 | E33: N/A | F33: 622.00 | G33: 7,464.00 | H33: 51.83 | I33: 39.17 | J33: 0.00 | K33: 0.00 | L33: 713.00
A34: 33 | B34: ANALISTA DE SISTEMAS | C34: 05-SERVIDOR/FUNCIONARIO SERVICIO PÚBLICO | D34: 5.1.05.10 | E34: N/A | F34: 820.00 | G34: 9,840.00 | H34: 68.33 | I34: 39.17 | J34: 0.00 | K34: 0.00 | L34: 927.50
A35: 34 | B35: AUXILIAR DE SERVICIOS | C35: 05-SERVIDOR/FUNCIONARIO SERVICIO PÚBLICO | D35: 5.1.01.05 | E35: N/A | F35: 460.00 | G35: 5,520.00 | H35: 38.33 | I35: 39.17 | J35: 0.00 | K35: 0.00 | L35: 537.50
A36: 35 | B36: CUIDADORA | C36: 05-SERVIDOR/FUNCIONARIO SERVICIO PÚBLICO | D36: 5.1.01.05 | E36: N/A | F36: 755.00 | G36: 9,060.00 | H36: 62.92 | I36: 39.17 | J36: 0.00 | K36: 0.00 | L36: 857.08
A37: 36 | B37: AUXILIAR DE LIMPIEZA | C37: 05-SERVIDOR/FUNCIONARIO SERVICIO PÚBLICO | D37: 7.1.05.10 | E37: N/A | F37: 675.00 | G37: 8,100.00 | H37: 56.25 | I37: 39.17 | J37: 0.00 | K37: 0.00 | L37: 770.42
A38: 37 | B38: ASISTENTE TECNICO DE RENTAS | C38: 05-SERVIDOR/FUNCIONARIO SERVICIO PÚBLICO | D38: 7.1.01.05 | E38: N/A | F38: 470.00 | G38: 5,640.00 | H38: 39.17 | I38: 39.17 | J38: 0.00 | K38: 0.00 | L38: 548.33
A39: 38 | B39: JEFE DE GESTIÓN AMBIENTAL RIESGOS, ARIDOS Y PETREOS | C39: 05-SERVIDOR/FUNCIONARIO SERVICIO PÚBLICO | D39: 5.1.01.05 | E39: N/A | F39: 1110.00 | G39: 13,320.00 | H39: 92.50 | I39: 39.17 | J39: 0.00 | K39: 0.00 | L39: 1241.67
A40: 39 | B40: AUXILIAR DE COCINA | C40: 05-SERVIDOR/FUNCIONARIO SERVICIO PÚBLICO | D40: 7.1.01.05 | E40: N/A | F40: 470.00 | G40: 5,640.00 | H40: 39.17 | I40: 39.17 | J40: 0.00 | K40: 0.00 | L40: 548.33
A41: 40 | B41: ASISTENTE ADMINISTRATIVO | C41: 05-SERVIDOR/FUNCIONARIO SERVICIO PÚBLICO | D41: 5.1.01.05 | E41: N/A | F41: 820.00 | G41: 9,840.00 | H41: 68.33 | I41: 39.17 | J41: 0.00 | K41: 0.00 | L41: 927.50
A42: 41 | B42: AUXILIAR DE SERVICIOS | C42: 05-SERVIDOR/FUNCIONARIO SERVICIO PÚBLICO | D42: 5.1.01.06 | E42: N/A | F42: 622.00 | G42: 7,464.00 | H42: 51.83 | I42: 39.17 | J42: 0.00 | K42: 0.00 | L42: 713.00
A43: 42 | B43: AYUDANTE DE MAQUINA | C43: 05-SERVIDOR/FUNCIONARIO SERVICIO PÚBLICO | D43: 7.1.01.05 | E43: N/A | F43: 470.00 | G43: 5,640.00 | H43: 39.17 | I43: 39.17 | J43: 0.00 | K43: 0.00 | L43: 548.33
A44: 43 | B44: ASISTENTE ADMINISTRATIVO REG PROPIEDAD | C44: 05-SERVIDOR/FUNCIONARIO SERVICIO PÚBLICO | D44: 7.1.05.10 | E44: N/A | F44: 460.00 | G44: 5,520.00 | H44: 38.33 | I44: 39.17 | J44: 0.00 | K44: 0.00 | L44: 537.50
A45: 44 | B45: ASISTENTE TECNICO DE CONTABILIDAD | C45: 05-SERVIDOR/FUNCIONARIO SERVICIO PÚBLICO | D45: 7.1.05.10 | E45: N/A | F45: 460.00 | G45: 5,520.00 | H45: 38.33 | I45: 39.17 | J45: 0.00 | K45: 0.00 | L45: 537.50
A46: 45 | B46: MECANICO REVISOR - ASISTENTE TÉCNICO DE REVISIÓN VEHÍCULAR | C46: 05-SERVIDOR/FUNCIONARIO SERVICIO PÚBLICO | D46: 5.1.01.05 | E46: N/A | F46: 622.00 | G46: 7,464.00 | H46: 51.83 | I46: 39.17 | J46: 0.00 | K46: 0.00 | L46: 713.00
A47: 46 | B47: ALCALDE DEL GAD CHUNCHI | C47: 05-SERVIDOR/FUNCIONARIO SERVICIO PÚBLICO | D47: 7.1.05.10 | E47: N/A | F47: 755.00 | G47: =F47*12 -> 9,060.00 | H47: =F47/12 -> 62.92 | I47: 39.17 | J47: 0.00 | K47: 0.00 | L47: =F47+H47+I47 -> 857.08
A48: 47 | B48: AUXILIAR ADMINISTRATIVO DE OBRAS PÚBLICAS | C48: 05-SERVIDOR/FUNCIONARIO SERVICIO PÚBLICO | D48: 7.1.05.10 | E48: N/A | F48: 755.00 | G48: =F48*12 -> 9,060.00 | H48: =F48/12 -> 62.92 | I48: 39.17 | J48: 0.00 | K48: 0.00 | L48: =F48+H48+I48 -> 857.08
A49: 48 | B49: ANALISTA DE PLANIFICACIÓN PATRIMONIO AVALUOS Y CATÁSTROS | C49: 05-SERVIDOR/FUNCIONARIO SERVICIO PÚBLICO | D49: 7.1.01.05 | E49: N/A | F49: 3500.00 | G49: =F49*12 -> 42,000.00 | H49: =F49/12 -> 291.67 | I49: 39.17 | J49: 0.00 | K49: 0.00 | L49: =F49+H49+I49 -> 3830.83
A50: 49 | B50: SECRETARIO MUNICIPAL | C50: 05-SERVIDOR/FUNCIONARIO SERVICIO PÚBLICO | D50: 7.1.05.10 | E50: N/A | F50: 460.00 | G50: 5,520.00 | H50: 38.33 | I50: 39.17 | J50: 0.00 | K50: 0.00 | L50: 537.50
A51: 50 | B51: ASISTENTE ADMINISTRATIVO FINANCIERO | C51: 05-SERVIDOR/FUNCIONARIO SERVICIO PÚBLICO | D51: =+D50 -> 7.1.05.10 | E51: N/A | F51: 570.00 | G51: 6,840.00 | H51: 47.50 | I51: 39.17 | J51: 0.00 | K51: 0.00 | L51: 656.67
A52: 51 | B52: AUXILIAR ADMINISTRATIVA DE DESARROLLO AGROPECUARIO | C52: 05-SERVIDOR/FUNCIONARIO SERVICIO PÚBLICO | D52: 7.1.05.10 | E52: N/A | F52: 820.00 | G52: 9,840.00 | H52: 68.33 | I52: 39.17 | J52: 0.00 | K52: 0.00 | L52: 927.50
A53: 52 | B53: AGENTE MUNICIPAL DE CONTROL | C53: 05-SERVIDOR/FUNCIONARIO SERVICIO PÚBLICO | D53: 5.1.01.06 | E53: N/A | F53: 1110.00 | G53: 13,320.00 | H53: 92.50 | I53: 39.17 | J53: 0.00 | K53: 0.00 | L53: 1241.67
A54: 53 | B54: PROMOTOR DEL PROYECTO CIUDADES HERMANAS NEWARK - CHUNCHI | C54: 05-SERVIDOR/FUNCIONARIO SERVICIO PÚBLICO | D54: 5.1.05.10 | E54: N/A | F54: 622.00 | G54: 7,464.00 | H54: 51.83 | I54: 39.17 | J54: 0.00 | K54: 0.00 | L54: 713.00
A55: 54 | B55: ASISTENTE ADMINISTRATIVO DE OBRAS PUBLICAS | C55: 05-SERVIDOR/FUNCIONARIO SERVICIO PÚBLICO | D55: 5.1.01.05 | E55: N/A | F55: 570.00 | G55: 6,840.00 | H55: 47.50 | I55: 39.17 | J55: 0.00 | K55: 0.00 | L55: 656.67
A56: 55 | B56: CONTADORA | C56: 05-SERVIDOR/FUNCIONARIO SERVICIO PÚBLICO | D56: 5.1.01.05 | E56: N/A | F56: 528.00 | G56: 6,336.00 | H56: 44.00 | I56: 39.17 | J56: 0.00 | K56: 0.00 | L56: 611.17
A57: 56 | B57: TÉCNICA EN PSICOLOGÍA EDUCATIVA ATENCIÓN A NIÑOS (AS)Y ADOLESCENTES CAPNNEE | C57: 05-SERVIDOR/FUNCIONARIO SERVICIO PÚBLICO | D57: 7.1.05.10 | E57: N/A | F57: 1110.00 | G57: 13,320.00 | H57: 92.50 | I57: 39.17 | J57: 0.00 | K57: 0.00 | L57: 1241.67
A58: 57 | B58: CUIDADORA | C58: 05-SERVIDOR/FUNCIONARIO SERVICIO PÚBLICO | D58: 5.1.01.05 | E58: N/A | F58: 460.00 | G58: 5,520.00 | H58: 38.33 | I58: 39.17 | J58: 0.00 | K58: 0.00 | L58: 537.50
A59: 58 | B59: REGISTRADOR DE LA PROPIEDAD | C59: 05-SERVIDOR/FUNCIONARIO SERVICIO PÚBLICO | D59: 7.1.05.10 | E59: N/A | F59: 920.00 | G59: 11,040.00 | H59: 76.67 | I59: 39.17 | J59: 0.00 | K59: 0.00 | L59: 1035.83
A60: 59 | B60: COMISARIO MUNICIPAL | C60: 05-SERVIDOR/FUNCIONARIO SERVICIO PÚBLICO | D60: 5.1.01.05 | E60: N/A | F60: 622.00 | G60: 7,464.00 | H60: 51.83 | I60: 39.17 | J60: 0.00 | K60: 0.00 | L60: 713.00
A61: 60 | B61: MECÁNICO DEL TALLER MUNICIPAL | C61: 05-SERVIDOR/FUNCIONARIO SERVICIO PÚBLICO | D61: 7.1.05.10 | E61: N/A | F61: 1920.00 | G61: 23,040.00 | H61: 160.00 | I61: 39.17 | J61: 0.00 | K61: 0.00 | L61: 2119.17
A62: 61 | B62: CUIDADORA | C62: 05-SERVIDOR/FUNCIONARIO SERVICIO PÚBLICO | D62: 7.1.05.10 | E62: N/A | F62: 820.00 | G62: 9,840.00 | H62: 68.33 | I62: 39.17 | J62: 0.00 | K62: 0.00 | L62: 927.50
A63: 62 | B63: ASISTENTE ADMINISTRATIVO DE PLAZAS Y MERCADOS | C63: 05-SERVIDOR/FUNCIONARIO SERVICIO PÚBLICO | D63: 5.1.01.06 | E63: N/A | F63: 755.00 | G63: 9,060.00 | H63: 62.92 | I63: 39.17 | J63: 0.00 | K63: 0.00 | L63: 857.08
A64: 63 | B64: CUIDADORA | C64: 05-SERVIDOR/FUNCIONARIO SERVICIO PÚBLICO | D64: 7.1.05.10 | E64: N/A | F64: 675.00 | G64: 8,100.00 | H64: 56.25 | I64: 39.17 | J64: 0.00 | K64: 0.00 | L64: 770.42
A65: 64 | B65: ASISTENTE ADMINISTRATIVO AMBIENTAL | C65: 05-SERVIDOR/FUNCIONARIO SERVICIO PÚBLICO | D65: 7.1.05.10 | E65: N/A | F65: 675.00 | G65: 8,100.00 | H65: 56.25 | I65: 39.17 | J65: 0.00 | K65: 0.00 | L65: 770.42
A66: 65 | B66: CONCEJAL URBANO | C66: 05-SERVIDOR/FUNCIONARIO SERVICIO PÚBLICO | D66: 5.1.01.05 | E66: N/A | F66: 570.00 | G66: 6,840.00 | H66: 47.50 | I66: 39.17 | J66: 0.00 | K66: 0.00 | L66: 656.67
A67: 66 | B67: TRABAJADOR SOCIAL | C67: 05-SERVIDOR/FUNCIONARIO SERVICIO PÚBLICO | D67: 7.1.05.10 | E67: N/A | F67: 622.00 | G67: 7,464.00 | H67: 51.83 | I67: 39.17 | J67: 0.00 | K67: 0.00 | L67: 713.00
A68: 67 | B68: ASISTENTE ADMINISTRATIVO 1 | C68: 05-SERVIDOR/FUNCIONARIO SERVICIO PÚBLICO | D68: 5.1.01.05 | E68: N/A | F68: 820.00 | G68: 9,840.00 | H68: 68.33 | I68: 39.17 | J68: 0.00 | K68: 0.00 | L68: 927.50
A69: 68 | B69: ASISTENTE ADMINISTRATIVO DE SECRETARIA Y ATENCION AL PUBLICO | C69: 05-SERVIDOR/FUNCIONARIO SERVICIO PÚBLICO | D69: 5.1.01.05 | E69: N/A | F69: 1750.00 | G69: 21,000.00 | H69: 145.83 | I69: 39.17 | J69: 0.00 | K69: 0.00 | L69: 1935.00
A70: 69 | B70: ASISTENTE TÉCNICO DE ALCALDÍA | C70: 05-SERVIDOR/FUNCIONARIO SERVICIO PÚBLICO | D70: =+D69 -> 5.1.01.05 | E70: N/A | F70: 986.00 | G70: 11,832.00 | H70: 82.17 | I70: 39.17 | J70: 0.00 | K70: 0.00 | L70: 1107.33
A71: 70 | B71: ASISTENTE ADMINISTRATIVO DE PROVEEDURIA | C71: 05-SERVIDOR/FUNCIONARIO SERVICIO PÚBLICO | D71: 7.1.05.10 | E71: N/A | F71: 622.00 | G71: 7,464.00 | H71: 51.83 | I71: 39.17 | J71: 0.00 | K71: 0.00 | L71: 713.00
A72: 71 | B72: ANALISTA JURIDICO | C72: 05-SERVIDOR/FUNCIONARIO SERVICIO PÚBLICO | D72: 5.1.01.05 | E72: N/A | F72: 622.00 | G72: =F72*12 -> 7,464.00 | H72: =F72/12 -> 51.83 | I72: 39.17 | J72: 0.00 | K72: 0.00 | L72: =F72+H72+I72 -> 713.00
A73: 72 | B73: COORDINADOR INSTITUCIONAL | C73: 05-SERVIDOR/FUNCIONARIO SERVICIO PÚBLICO | D73: =+D72 -> 5.1.01.05 | E73: N/A | F73: 755.00 | G73: 9,060.00 | H73: 62.92 | I73: 39.17 | J73: 0.00 | K73: 0.00 | L73: 857.08
A74: 73 | B74: ANALISTA DE SEGURIDAD Y SALUD OCUPACIONAL | C74: 05-SERVIDOR/FUNCIONARIO SERVICIO PÚBLICO | D74: 5.1.01.05 | E74: N/A | F74: 622.00 | G74: 7,464.00 | H74: 51.83 | I74: 39.17 | J74: 0.00 | K74: 0.00 | L74: 713.00
A75: 74 | B75: CONCEJAL RURAL | C75: 05-SERVIDOR/FUNCIONARIO SERVICIO PÚBLICO | D75: 7.1.05.10 | E75: N/A | F75: 622.00 | G75: 7,464.00 | H75: 51.83 | I75: 39.17 | J75: 0.00 | K75: 0.00 | L75: 713.00
A76: 75 | B76: ABOGADA DE COACTIVAS | C76: 05-SERVIDOR/FUNCIONARIO SERVICIO PÚBLICO | D76: 7.1.05.10 | E76: N/A | F76: 820.00 | G76: 9,840.00 | H76: 68.33 | I76: 39.17 | J76: 0.00 | K76: 0.00 | L76: 927.50
A77: 76 | B77: MIEMBRO 3 DE LA JUNTA CANTONAL DE PROTECCION DE DERECHOS | C77: 05-SERVIDOR/FUNCIONARIO SERVICIO PÚBLICO | D77: 7.1.05.10 | E77: N/A | F77: 1670.00 | G77: 20,040.00 | H77: 139.17 | I77: 39.17 | J77: 0.00 | K77: 0.00 | L77: 1848.33
A78: 77 | B78: ASISTENTE ADMINISTRATIVO TESORERIA" | C78: 05-SERVIDOR/FUNCIONARIO SERVICIO PÚBLICO | D78: 7.1.05.10 | E78: N/A | F78: 820.00 | G78: 9,840.00 | H78: 68.33 | I78: 39.17 | J78: 0.00 | K78: 0.00 | L78: 927.50
A79: 78 | B79: ADMINISTRADOR DE BIENES | C79: 05-SERVIDOR/FUNCIONARIO SERVICIO PÚBLICO | D79: 5.1.01.05 | E79: N/A | F79: 1750.00 | G79: 21,000.00 | H79: 145.83 | I79: 39.17 | J79: 0.00 | K79: 0.00 | L79: 1935.00
A80: 79 | B80: JEFE DE TALENTO HUMANO | C80: 05-SERVIDOR/FUNCIONARIO SERVICIO PÚBLICO | D80: 7.1.05.10 | E80: N/A | F80: 820.00 | G80: 9,840.00 | H80: 68.33 | I80: 39.17 | J80: 0.00 | K80: 0.00 | L80: 927.50
A81: 80 | B81: ASISTENTE TECNICO DE EDUCACION | C81: 05-SERVIDOR/FUNCIONARIO SERVICIO PÚBLICO | D81: 5.1.01.05 | E81: N/A | F81: 622.00 | G81: 7,464.00 | H81: 51.83 | I81: =470/12 -> 39.17 | J81: 0.00 | K81: 0.00 | L81: 713.00
A82: 81 | B82: ASISTENTE ADMINISTRATIVO DE ANEXOS | C82: 05-SERVIDOR/FUNCIONARIO SERVICIO PÚBLICO | D82: 5.1.01.05 | E82: N/A | F82: 622.00 | G82: =F82*12 -> 7,464.00 | H82: 51.83 | I82: 39.17 | J82: 0.00 | K82: 0.00 | L82: =F82+H82+I82 -> 713.00
A83: 82 | B83: ASISTETE ADMINISTARTIVO DE TALENTO HUMANO | C83: 05-SERVIDOR/FUNCIONARIO SERVICIO PÚBLICO | D83: 5.1.01.05 | E83: N/A | F83: 820.00 | G83: 9,840.00 | H83: =F83/12 -> 68.33 | I83: 39.17 | J83: 0.00 | K83: 0.00 | L83: 927.50
A84: 83 | B84: ANALISTA DE COMPRAS PUBLICAS | C84: 05-SERVIDOR/FUNCIONARIO SERVICIO PÚBLICO | D84: 5.1.01.05 | E84: N/A | F84: 1110.00 | G84: 13,320.00 | H84: 92.50 | I84: 39.17 | J84: 0.00 | K84: 0.00 | L84: 1241.67
A85: 84 | B85: ASISTENTE ADMINISTRATIVO AULA VIRTUAL BIBLIOTECA Y ACCION SOCIA | C85: 05-SERVIDOR/FUNCIONARIO SERVICIO PÚBLICO | D85: 5.1.01.05 | E85: N/A | F85: 755.00 | G85: 9,060.00 | H85: 62.92 | I85: 39.17 | J85: 0.00 | K85: 0.00 | L85: 857.08
A86: 85 | B86: PROMOTOR AGRICOLA Y MANTENIMIENTO DE AREAS VERDES | C86: 05-SERVIDOR/FUNCIONARIO SERVICIO PÚBLICO | D86: 7.1.05.10 | E86: N/A | F86: 622.00 | G86: 7,464.00 | H86: 51.83 | I86: 39.17 | J86: 0.00 | K86: 0.00 | L86: 713.00
A87: 86 | B87: ANALISTA DE TURISMO | C87: 05-SERVIDOR/FUNCIONARIO SERVICIO PÚBLICO | D87: 5.1.01.05 | E87: J/N | F87: 622.00 | G87: 7,464.00 | H87: 51.83 | I87: 39.17 | J87: 0.00 | K87: 0.00 | L87: 713.00
A88: 87 | B88: ASISTENTE ADMINISTRATIVO DEL REGISTRO DE LA PROPIEDAD 3 | C88: 05-SERVIDOR/FUNCIONARIO SERVICIO PÚBLICO | D88: 5.1.05.10 | E88: N/A | F88: 920.00 | G88: 11,040.00 | H88: 76.67 | I88: 39.17 | J88: 0.00 | K88: 0.00 | L88: 1035.83
A89: 88 | B89: AUXILIAR ADMINISTRATIVO DE COACTIVAS | C89: 05-SERVIDOR/FUNCIONARIO SERVICIO PÚBLICO | D89: 7.1.05.10 | E89: N/A | F89: 622.00 | G89: 7,464.00 | H89: 51.83 | I89: 39.17 | J89: 0.00 | K89: 0.00 | L89: 713.00
A90: 89 | B90: ASISTENTE ADMINISTRATIVO DE RENTAS" | C90: 05-SERVIDOR/FUNCIONARIO SERVICIO PÚBLICO | D90: 5.1.01.05 | E90: N/A | F90: 622.00 | G90: 7,464.00 | H90: 51.83 | I90: 39.17 | J90: 0.00 | K90: 0.00 | L90: 713.00
A91: 90 | B91: ASIT TECNICO DE ACCION SOCIAL, RECREACIÓN CULTURAL Y DEPORTE | C91: 05-SERVIDOR/FUNCIONARIO SERVICIO PÚBLICO | D91: 5.1.01.05 | E91: N/A | F91: 820.00 | G91: 9,840.00 | H91: 68.33 | I91: 39.17 | J91: 0.00 | K91: 0.00 | L91: 927.50
A92: 91 | B92: INSTRUCTOR DE DANZA | C92: 05-SERVIDOR/FUNCIONARIO SERVICIO PÚBLICO | D92: 5.1.05.10 | E92: N/A | F92: 622.00 | G92: 7,464.00 | H92: 51.83 | I92: 39.17 | J92: 0.00 | K92: 0.00 | L92: 713.00
A93: 92 | B93: JEFE DE LA UNIDAD TECNICA MUNICIPAL DE TRANSPORTE TERRESTRE | C93: 05-SERVIDOR/FUNCIONARIO SERVICIO PÚBLICO | D93: 5.1.01.05 | E93: N/A | F93: 622.00 | G93: 7,464.00 | H93: 51.83 | I93: 39.17 | J93: 0.00 | K93: 0.00 | L93: 713.00
A94: 93 | B94: EDUCADORA CDI CHUNCHI ROSARIO VALLEJO | C94: 05-SERVIDOR/FUNCIONARIO SERVICIO PÚBLICO | D94: 7.1.01.05 | E94: N/A | F94: 570.00 | G94: 6,840.00 | H94: 47.50 | I94: 39.17 | J94: 0.00 | K94: 0.00 | L94: 656.67
A95: 94 | B95: DIRECTOR DE PLANIFICACIÓN PATRIMONIO AVALUOS Y CATÁSTROS | C95: 05-SERVIDOR/FUNCIONARIO SERVICIO PÚBLICO | D95: 7.1.05.10 | E95: N/A | F95: 622.00 | G95: 7,464.00 | H95: 51.83 | I95: 39.17 | J95: 0.00 | K95: 0.00 | L95: 713.00
A96: 95 | B96: CONCEJAL RURAL | C96: 05-SERVIDOR/FUNCIONARIO SERVICIO PÚBLICO | D96: 5.1.01.05 | E96: N/A | F96: 755.00 | G96: 9,060.00 | H96: 62.92 | I96: 39.17 | J96: 0.00 | K96: 0.00 | L96: 857.08
A97: 96 | B97: PROMOTOR SOCIAL ATENCION DOMICILIARIA ATENCION ADULTOS MAYORES | C97: 05-SERVIDOR/FUNCIONARIO SERVICIO PÚBLICO | D97: 5.1.01.05 | E97: N/A | F97: 520.00 | G97: 6,240.00 | H97: 43.33 | I97: 39.17 | J97: 0.00 | K97: 0.00 | L97: 602.50
A98: 97 | B98: ASISTENTE TECNICO DEL REGISTRO DE LA PROPIEDAD | C98: 05-SERVIDOR/FUNCIONARIO SERVICIO PÚBLICO | D98: 5.1.01.05 | E98: N/A | F98: 1110.00 | G98: 13,320.00 | H98: 92.50 | I98: 39.17 | J98: 0.00 | K98: 0.00 | L98: 1241.67
A99: 98 | B99: RECAUDADOR 2 | C99: 05-SERVIDOR/FUNCIONARIO SERVICIO PÚBLICO | D99: 7.1.01.05 | E99: N/A | F99: 460.00 | G99: 5,520.00 | H99: 38.33 | I99: 39.17 | J99: 0.00 | K99: 0.00 | L99: 537.50
A100: 99 | B100: DIRECTOR DE OBRAS PUBLICAS | C100: 05-SERVIDOR/FUNCIONARIO SERVICIO PÚBLICO | D100: =+D99 -> 7.1.01.05 | E100: N/A | F100: 1670.00 | G100: 20,040.00 | H100: 139.17 | I100: 39.17 | J100: 0.00 | K100: 0.00 | L100: 1848.33
A101: 100 | B101: FISCALIZADOR | C101: 05-SERVIDOR/FUNCIONARIO SERVICIO PÚBLICO | D101: 5.1.01.05 | E101: N/A | F101: 1750.00 | G101: 21,000.00 | H101: 145.83 | I101: 39.17 | J101: 0.00 | K101: 0.00 | L101: 1935.00
A102: 101 | B102: FACILITADORA AHC | C102: 05-SERVIDOR/FUNCIONARIO SERVICIO PÚBLICO | D102: 7.1.01.05 | E102: N/A | F102: 986.00 | G102: 11,832.00 | H102: 82.17 | I102: 39.17 | J102: 0.00 | K102: 0.00 | L102: 1107.33
A103: 102 | B103: CUIDADOR DEL CENTRO GERONTOLOGICO | C103: 05-SERVIDOR/FUNCIONARIO SERVICIO PÚBLICO | D103: 7.1.05.10 | E103: N/A | F103: 460.00 | G103: 5,520.00 | H103: 38.33 | I103: 39.17 | J103: 0.00 | K103: 0.00 | L103: 537.50
A104: 103 | B104: PSICÓLOGA | C104: 05-SERVIDOR/FUNCIONARIO SERVICIO PÚBLICO | D104: 5.1.01.05 | E104: N/A | F104: 590.00 | G104: 7,080.00 | H104: 49.17 | I104: 39.17 | J104: 0.00 | K104: 0.00 | L104: 678.33
A105: 104 | B105: TESORERO | C105: 05-SERVIDOR/FUNCIONARIO SERVICIO PÚBLICO | D105: 5.1.01.05 | E105: N/A | F105: 755.00 | G105: 9,060.00 | H105: 62.92 | I105: 39.17 | J105: 0.00 | K105: 0.00 | L105: 857.08
A106: 105 | B106: EDUCADORA CDI GONZOL | C106: 05-SERVIDOR/FUNCIONARIO SERVICIO PÚBLICO | D106: 7.1.05.10 | E106: N/A | F106: 1670.00 | G106: 20,040.00 | H106: 139.17 | I106: 39.17 | J106: 0.00 | K106: 0.00 | L106: 1848.33
A107: 106 | B107: INSTRUCTOR DE MÚSICA | C107: 05-SERVIDOR/FUNCIONARIO SERVICIO PÚBLICO | D107: 7.1.05.10 | E107: N/A | F107: 820.00 | G107: 9,840.00 | H107: 68.33 | I107: 39.17 | J107: 0.00 | K107: 0.00 | L107: 927.50
A108: 107 | B108: ASISTENTE TECNICO FINANCIERA | C108: 05-SERVIDOR/FUNCIONARIO SERVICIO PÚBLICO | D108: 7.1.01.05 | E108: N/A | F108: 733.00 | G108: 8,796.00 | H108: 61.08 | I108: 39.17 | J108: 0.00 | K108: 0.00 | L108: 833.25
A109: 108 | B109: ASISTENTE ADMINISTRATIVO DEL COMPLEJO TURISTICO LA FAMILIA | C109: 05-SERVIDOR/FUNCIONARIO SERVICIO PÚBLICO | D109: 7.1.05.10 | E109: N/A | F109: 675.00 | G109: 8,100.00 | H109: 56.25 | I109: 39.17 | J109: 0.00 | K109: 0.00 | L109: 770.42
A110: 109 | B110: AUXILIAR DE SERVICIOS SECRETARIA | C110: 05-SERVIDOR/FUNCIONARIO SERVICIO PÚBLICO | D110: 5.1.01.05 | E110: N/A | F110: 460.00 | G110: 5,520.00 | H110: 38.33 | I110: 39.17 | J110: 0.00 | K110: 0.00 | L110: 537.50
A111: 110 | B111: AUXILIAR ADMINISTRATIVO DE AVALUOS Y CATÁSTROS | C111: 05-SERVIDOR/FUNCIONARIO SERVICIO PÚBLICO | D111: =+D109 -> 7.1.05.10 | E111: N/A | F111: 986.00 | G111: 11,832.00 | H111: 82.17 | I111: 39.17 | J111: 0.00 | K111: 0.00 | L111: 1107.33
A112: 111 | B112: CUIDADORA | C112: 05-SERVIDOR/FUNCIONARIO SERVICIO PÚBLICO | D112: 7.1.05.10 | E112: N/A | F112: 1110.00 | G112: 13,320.00 | H112: 92.50 | I112: 39.17 | J112: 0.00 | K112: 0.00 | L112: 1241.67
A113: 112 | B113: AUXILIAR DE COCINA | C113: 05-SERVIDOR/FUNCIONARIO SERVICIO PÚBLICO | D113: 7.1.05.10 | E113: N/A | F113: 460.00 | G113: 5,520.00 | H113: 38.33 | I113: 39.17 | J113: 0.00 | K113: 0.00 | L113: 537.50
A114: 113 | B114: ASISTENTE ADMINISTRATIVO B BODEGA | C114: 05-SERVIDOR/FUNCIONARIO SERVICIO PÚBLICO | D114: 5.1.01.05 | E114: N/A | F114: 520.00 | G114: 6,240.00 | H114: 43.33 | I114: 39.17 | J114: 0.00 | K114: 0.00 | L114: 602.50
A115: 114 | B115: FACILITADORA AHC | C115: 05-SERVIDOR/FUNCIONARIO SERVICIO PÚBLICO | D115: 5.1.01.05 | E115: N/A | F115: 755.00 | G115: 9,060.00 | H115: 62.92 | I115: 39.17 | J115: 0.00 | K115: 0.00 | L115: 857.08
A116: 115 | B116: JEFE DE DESARROLLO AGROPECIARIO | C116: 05-SERVIDOR/FUNCIONARIO SERVICIO PÚBLICO | D116: 7.1.01.05 | E116: N/A | F116: 622.00 | G116: 7,464.00 | H116: 51.83 | I116: 39.17 | J116: 0.00 | K116: 0.00 | L116: 713.00
A117: 116 | B117: ASISTENTE ADAMINISTRATIVO DE COMISARIA | C117: 05-SERVIDOR/FUNCIONARIO SERVICIO PÚBLICO | D117: 7.1.05.10 | E117: N/A | F117: 460.00 | G117: 5,520.00 | H117: 38.33 | I117: 39.17 | J117: 0.00 | K117: 0.00 | L117: 537.50
A118: 117 | B118: PROSECRETARIA | C118: 05-SERVIDOR/FUNCIONARIO SERVICIO PÚBLICO | D118: 7.1.05.10 | E118: N/A | F118: 570.00 | G118: 6,840.00 | H118: 47.50 | I118: 39.17 | J118: 0.00 | K118: 0.00 | L118: 656.67
A119: 118 | B119: INSPECTOR SANITARIO | C119: 05-SERVIDOR/FUNCIONARIO SERVICIO PÚBLICO | D119: 7.1.05.10 | E119: N/A | F119: 675.00 | G119: 8,100.00 | H119: 56.25 | I119: 39.17 | J119: 0.00 | K119: 0.00 | L119: 770.42
A120: 119 | B120: COORDINADOR | C120: 05-SERVIDOR/FUNCIONARIO SERVICIO PÚBLICO | D120: =+D119 -> 7.1.05.10 | E120: N/A | F120: 470.00 | G120: 5,640.00 | H120: 39.17 | I120: 39.17 | J120: 0.00 | K120: 0.00 | L120: 548.33
A121: 120 | B121: TECNICO DE LA DIRECCION DE PLANIFICACION PATRIMONIO AVALUOS Y CATASTROS | C121: 05-SERVIDOR/FUNCIONARIO SERVICIO PÚBLICO | D121: 7.1.05.10 | E121: N/A | F121: 460.00 | G121: 5,520.00 | H121: 38.33 | I121: 39.17 | J121: 0.00 | K121: 0.00 | L121: 537.50
A122: 121 | B122: SECRETARIA AJECUTIVA PROT.DERECHOS | C122: 05-SERVIDOR/FUNCIONARIO SERVICIO PÚBLICO | D122: 7.1.05.10 | E122: N/A | F122: 622.00 | G122: 7,464.00 | H122: 51.83 | I122: 39.17 | J122: 0.00 | K122: 0.00 | L122: 713.00
A123: 132 | B123: CHOFER DE ALCALDIA | C123: 06-CODIGO DEL TRABAJO - CT | D123: 5.1.01.06 | E123: N/A | G123: 0 | H123: 0.00 | I123: 39.17 | J123: 0.00 | K123: 0.00 | L123: 39.17
A124: 133 | B124: OPERADOR RETROEXCAVADORA | C124: 06-CODIGO DEL TRABAJO - CT | D124: 7.1.01.06 | E124: N/A | F124: 460.00 | G124: 5,520.00 | H124: 38.33 | I124: 39.17 | J124: 0.00 | K124: 0.00 | L124: 537.50
A125: 134 | B125: operador tractor agricola | C125: 06-CODIGO DEL TRABAJO - CT | D125: 7.1.01.06 | E125: N/A | F125: 622.00 | G125: 7,464.00 | H125: 51.83 | I125: 39.17 | J125: 0.00 | K125: 0.00 | L125: 713.00
A126: 135 | B126: AUXILIAR DE SERVICIOS | C126: 06-CODIGO DEL TRABAJO - CT | D126: 7.1.01.06 | E126: N/A | F126: 733.00 | G126: 8,796.00 | H126: 61.08 | I126: 39.17 | J126: 0.00 | K126: 0.00 | L126: 833.25
A127: 136 | B127: AUXILIAR DE SERVICIOS BARRIDO Y RECOLECCIÓN | C127: 06-CODIGO DEL TRABAJO - CT | D127: 7.1.01.06 | E127: N/A | F127: 850.00 | G127: 10,200.00 | H127: 70.83 | I127: 39.17 | J127: 0.00 | K127: 0.00 | L127: 960.00
A128: 137 | B128: GUARDIA | C128: 06-CODIGO DEL TRABAJO - CT | D128: 7.1.01.06 | E128: N/A | F128: 622.00 | G128: 7,464.00 | H128: 51.83 | I128: 39.17 | J128: 0.00 | K128: 0.00 | L128: 713.00
A129: 138 | B129: BARRENDERO | C129: 06-CODIGO DEL TRABAJO - CT | D129: 7.1.01.06 | E129: N/A | F129: 460.00 | G129: 5,520.00 | H129: 38.33 | I129: 39.17 | J129: 0.00 | K129: 0.00 | L129: 537.50
A130: 139 | B130: AUXILIAR DE SERVICIOS | C130: 06-CODIGO DEL TRABAJO - CT | D130: 7.1.01.06 | E130: N/A | F130: 460.00 | G130: 5,520.00 | H130: 38.33 | I130: 39.17 | J130: 0.00 | K130: 0.00 | L130: 537.50
A131: 140 | B131: AUXILIAR DE SERVICIOS GUARDIANIA | C131: 06-CODIGO DEL TRABAJO - CT | D131: 7.1.01.06 | E131: N/A | F131: 1110.00 | G131: 13,320.00 | H131: 92.50 | I131: 39.17 | J131: 0.00 | K131: 0.00 | L131: 1241.67
A132: 141 | B132: MATARIFE | C132: 06-CODIGO DEL TRABAJO - CT | D132: 7.1.01.06 | E132: N/A | F132: 460.00 | G132: 5,520.00 | H132: 38.33 | I132: 39.17 | J132: 0.00 | K132: 0.00 | L132: 537.50
A133: 142 | B133: AUXILIAR DE SERVICIOS BARRIDO Y RECOLECCIÓN | C133: 06-CODIGO DEL TRABAJO - CT | D133: 7.1.01.06 | E133: N/A | F133: 820.00 | G133: 9,840.00 | H133: 68.33 | I133: 39.17 | J133: 0.00 | K133: 0.00 | L133: 927.50
A134: 143 | B134: CHOFER VEHICULOS LIVIANOS | C134: 06-CODIGO DEL TRABAJO - CT | D134: 5.1.01.06 | E134: N/A | F134: 570.00 | G134: 6,840.00 | H134: 47.50 | I134: 39.17 | J134: 0.00 | K134: 0.00 | L134: 656.67
A135: 144 | B135: CHOFER | C135: 06-CODIGO DEL TRABAJO - CT | D135: 7.1.01.06 | E135: N/A | F135: 708.00 | G135: 8,496.00 | H135: 59.00 | I135: 39.17 | J135: 0.00 | K135: 0.00 | L135: 806.17
A136: 145 | B136: AUXILIAR DE SERVICIOS | C136: 06-CODIGO DEL TRABAJO - CT | D136: 7.1.01.06 | E136: N/A | F136: 708.00 | G136: 8,496.00 | H136: 59.00 | I136: 39.17 | J136: 0.00 | K136: 0.00 | L136: 806.17
A137: 146 | B137: ALBAÑIL | C137: 06-CODIGO DEL TRABAJO - CT | D137: 7.1.01.06 | E137: N/A | F137: 531.00 | G137: 6,372.00 | H137: 44.25 | I137: 39.17 | J137: 0.00 | K137: 0.00 | L137: 614.42
A138: 147 | B138: AUXILIAR DE SERVICIOS BARRIDO Y RECOLECCIÓN | C138: 06-CODIGO DEL TRABAJO - CT | D138: 7.1.01.06 | E138: N/A | F138: 460.00 | G138: 5,520.00 | H138: 38.33 | I138: 39.17 | J138: 0.00 | K138: 0.00 | L138: 537.50
A139: 148 | B139: AUXILIAR DE SERVICIOS BARRIDO Y RECOLECCIÓN | C139: 06-CODIGO DEL TRABAJO - CT | D139: 5.1.01.06 | E139: N/A | F139: 531.00 | G139: 6,372.00 | H139: 44.25 | I139: 39.17 | J139: 0.00 | K139: 0.00 | L139: 614.42
A140: 149 | B140: AUXILIAR DE SERVICIOS GUARDIANIA | C140: 06-CODIGO DEL TRABAJO - CT | D140: 7.1.01.06 | E140: N/A | F140: 548.00 | G140: 6,576.00 | H140: 45.67 | I140: 39.17 | J140: 0.00 | K140: 0.00 | L140: 632.83
A141: 150 | B141: AUXILIAR CITADOR | C141: 06-CODIGO DEL TRABAJO - CT | D141: 7.1.01.06 | E141: N/A | F141: 460.00 | G141: 5,520.00 | H141: 38.33 | I141: =470/12 -> 39.17 | J141: 0.00 | K141: 0.00 | L141: 537.50
A142: 151 | B142: GUARDIAN | C142: 06-CODIGO DEL TRABAJO - CT | D142: 7.1.01.06 | E142: N/A | F142: 460.00 | G142: =F142*12 -> 5,520.00 | H142: 38.33 | I142: 39.17 | J142: 0.00 | K142: 0.00 | L142: =F142+H142+I142 -> 537.50
A143: 152 | B143: CHOFER E | C143: 06-CODIGO DEL TRABAJO - CT | D143: 7.1.01.06 | E143: N/A | F143: 460.00 | G143: 5,520.00 | H143: =F143/12 -> 38.33 | I143: 39.17 | J143: 0.00 | K143: 0.00 | L143: 537.50
A144: 153 | B144: LAVADORA DE VISCERAS | C144: 06-CODIGO DEL TRABAJO - CT | D144: 7.1.01.06 | E144: N/A | F144: 460.00 | G144: 5,520.00 | H144: 38.33 | I144: 39.17 | J144: 0.00 | K144: 0.00 | L144: 537.50
A145: 154 | B145: CHOFER | C145: 06-CODIGO DEL TRABAJO - CT | D145: 5.1.01.06 | E145: N/A | F145: 566.00 | G145: 6,792.00 | H145: 47.17 | I145: 39.17 | J145: 0.00 | K145: 0.00 | L145: 652.33
A146: 155 | B146: LAVADOR DE VISCERAS | C146: 06-CODIGO DEL TRABAJO - CT | D146: 7.1.01.06 | E146: N/A | F146: 570.00 | G146: 6,840.00 | H146: 47.50 | I146: 39.17 | J146: 0.00 | K146: 0.00 | L146: 656.67
A147: 156 | B147: CHOFER VOLQUETA | C147: 06-CODIGO DEL TRABAJO - CT | D147: 7.1.01.06 | E147: N/A | F147: 584.00 | G147: 7,008.00 | H147: 48.67 | I147: 39.17 | J147: 0.00 | K147: 0.00 | L147: 671.83
A148: 157 | B148: MATARIFE | C148: 06-CODIGO DEL TRABAJO - CT | D148: 7.1.01.06 | E148: N/A | F148: 531.00 | G148: 6,372.00 | H148: 44.25 | I148: 39.17 | J148: 0.00 | K148: 0.00 | L148: 614.42
A149: 158 | B149: CHOFER | C149: 06-CODIGO DEL TRABAJO - CT | D149: 7.1.01.06 | E149: N/A | F149: 548.00 | G149: 6,576.00 | H149: 45.67 | I149: 39.17 | J149: 0.00 | K149: 0.00 | L149: 632.83
A150: 159 | B150: GUARDIAN PARQUE 3 | C150: 06-CODIGO DEL TRABAJO - CT | D150: 7.1.01.06 | E150: N/A | F150: 460.00 | G150: 5,520.00 | H150: 38.33 | I150: 39.17 | J150: 0.00 | K150: 0.00 | L150: 537.50
A151: 160 | B151: LAVADOR DE VISCERAS | C151: 06-CODIGO DEL TRABAJO - CT | D151: 5.1.01.06 | E151: N/A | F151: 460.00 | G151: 5,520.00 | H151: 38.33 | I151: 39.17 | J151: 0.00 | K151: 0.00 | L151: 537.50
A152: 161 | B152: MATARIFE | C152: 06-CODIGO DEL TRABAJO - CT | D152: 5.1.01.06 | E152: N/A | F152: 531.00 | G152: 6,372.00 | H152: 44.25 | I152: 39.17 | J152: 0.00 | K152: 0.00 | L152: 614.42
A153: 162 | B153: AYUDANTE DE LA PLATAFORMA | C153: 06-CODIGO DEL TRABAJO - CT | D153: 7.1.01.06 | E153: N/A | F153: 531.00 | G153: 6,372.00 | H153: 44.25 | I153: 39.17 | J153: 0.00 | K153: 0.00 | L153: 614.42
A154: 163 | B154: AYUDANTE DE MAQUINARIA | C154: 06-CODIGO DEL TRABAJO - CT | D154: 5.1.01.06 | E154: N/A | F154: 584.00 | G154: 7,008.00 | H154: 48.67 | I154: 39.17 | J154: 0.00 | K154: 0.00 | L154: 671.83
A155: 164 | B155: GUARDIA MUNICIPAL | C155: 06-CODIGO DEL TRABAJO - CT | D155: 7.1.01.06 | E155: N/A | F155: 460.00 | G155: 5,520.00 | H155: 38.33 | I155: 39.17 | J155: 0.00 | K155: 0.00 | L155: 537.50
A156: 165 | B156: AUXILIAR DE SERVICIOS | C156: 06-CODIGO DEL TRABAJO - CT | D156: 5.1.01.06 | E156: N/A | F156: 570.00 | G156: 6,840.00 | H156: 47.50 | I156: 39.17 | J156: 0.00 | K156: 0.00 | L156: 656.67
A157: 166 | B157: CHOFER DE ALCALDÍA | C157: 06-CODIGO DEL TRABAJO - CT | D157: 7.1.01.06 | E157: N/A | F157: 460.00 | G157: 5,520.00 | H157: 38.33 | I157: 39.17 | J157: 0.00 | K157: 0.00 | L157: 537.50
A158: 167 | B158: POLICIA MUNICIPAL | C158: 06-CODIGO DEL TRABAJO - CT | D158: 5.1.01.06 | E158: N/A | F158: 570.00 | G158: 6,840.00 | H158: 47.50 | I158: 39.17 | J158: 0.00 | K158: 0.00 | L158: 656.67
A159: 168 | B159: AUXILIAR DE SERVICIOS DEL CEMENTERIO | C159: 06-CODIGO DEL TRABAJO - CT | D159: 7.1.01.06 | E159: N/A | F159: 570.00 | G159: 6,840.00 | H159: 47.50 | I159: 39.17 | J159: 0.00 | K159: 0.00 | L159: 656.67
A160: 169 | B160: BARRENDERO 6 | C160: 06-CODIGO DEL TRABAJO - CT | D160: 7.1.01.06 | E160: N/A | F160: 531.00 | G160: 6,372.00 | H160: 44.25 | I160: 39.17 | J160: 0.00 | K160: 0.00 | L160: 614.42
A161: 170 | B161: MATARIFE | C161: 06-CODIGO DEL TRABAJO - CT | D161: 7.1.01.06 | E161: J/N | F161: 460.00 | G161: 5,520.00 | H161: 38.33 | I161: 39.17 | J161: 0.00 | K161: 0.00 | L161: 537.50
A162: 171 | B162: OPERADOR MOTONIVELADORA | C162: 06-CODIGO DEL TRABAJO - CT | D162: 7.1.01.06 | E162: N/A | F162: 460.00 | G162: 5,520.00 | H162: 38.33 | I162: 39.17 | J162: 0.00 | K162: 0.00 | L162: 537.50
A163: 172 | B163: OPERADOR MINICARGADORA | C163: 06-CODIGO DEL TRABAJO - CT | D163: 7.1.01.06 | E163: N/A | F163: 460.00 | G163: 5,520.00 | H163: 38.33 | I163: 39.17 | J163: 0.00 | K163: 0.00 | L163: 537.50
A164: 173 | B164: AUXILIAR DE SERVICIOS | C164: 06-CODIGO DEL TRABAJO - CT | D164: 7.1.01.06 | E164: N/A | F164: 460.00 | G164: 5,520.00 | H164: 38.33 | I164: 39.17 | J164: 0.00 | K164: 0.00 | L164: 537.50
A165: 174 | B165: AUXILIAR DE SERVICIOS | C165: 06-CODIGO DEL TRABAJO - CT | D165: 7.1.01.06 | E165: N/A | F165: 460.00 | G165: 5,520.00 | H165: 38.33 | I165: 39.17 | J165: 0.00 | K165: 0.00 | L165: 537.50
A166: 175 | B166: AUXILIAR DE SERVICIOS COMPLEJO LA FAMILIA | C166: 06-CODIGO DEL TRABAJO - CT | D166: 7.1.01.06 | E166: N/A | F166: 460.00 | G166: 5,520.00 | H166: 38.33 | I166: 39.17 | J166: 0.00 | K166: 0.00 | L166: 537.50
A167: 176 | B167: OPERADOR DEL TRACTOR | C167: 06-CODIGO DEL TRABAJO - CT | D167: 7.1.01.06 | E167: N/A | F167: 460.00 | G167: 5,520.00 | H167: 38.33 | I167: 39.17 | J167: 0.00 | K167: 0.00 | L167: 537.50
A168: 177 | B168: AYUDANTE DEL TALLER SOLDADOR 1 | C168: 06-CODIGO DEL TRABAJO - CT | D168: 7.1.01.06 | E168: N/A | F168: 460.00 | G168: 5,520.00 | H168: 38.33 | I168: 39.17 | J168: 0.00 | K168: 0.00 | L168: 537.50
A169: 178 | B169: AUXILIAR DE ARCHIVO | C169: 06-CODIGO DEL TRABAJO - CT | D169: 5.1.01.06 | E169: N/A | F169: 566.00 | G169: 6,792.00 | H169: 47.17 | I169: 39.17 | J169: 0.00 | K169: 0.00 | L169: 652.33
A170: 179 | B170: CHOFER 7 | C170: 06-CODIGO DEL TRABAJO - CT | D170: 7.1.01.06 | E170: N/A | F170: 460.00 | G170: 5,520.00 | H170: 38.33 | I170: 39.17 | J170: 0.00 | K170: 0.00 | L170: 537.50
A171: 180 | B171: CHOFER 8 | C171: 06-CODIGO DEL TRABAJO - CT | D171: 7.1.01.06 | E171: N/A | F171: 531.00 | G171: 6,372.00 | H171: 44.25 | I171: 39.17 | J171: 0.00 | K171: 0.00 | L171: 614.42
A172: 181 | B172: CHOFER MUNICIPAL 2 | C172: 06-CODIGO DEL TRABAJO - CT | D172: 7.1.01.06 | E172: N/A | F172: 460.00 | G172: 5,520.00 | H172: 38.33 | I172: 39.17 | J172: 0.00 | K172: 0.00 | L172: 537.50
A173: 182 | B173: LAVADORA DE VISCERAS | C173: 06-CODIGO DEL TRABAJO - CT | D173: 7.1.01.06 | E173: N/A | F173: 708.00 | G173: 8,496.00 | H173: 59.00 | I173: 39.17 | J173: 0.00 | K173: 0.00 | L173: 806.17
A174: 183 | B174: GUARDIAN MUNICIPAL | C174: 06-CODIGO DEL TRABAJO - CT | D174: 7.1.01.06 | E174: N/A | F174: 708.00 | G174: 8,496.00 | H174: 59.00 | I174: 39.17 | J174: 0.00 | K174: 0.00 | L174: 806.17
A175: 184 | B175: CHOFER RECOLECTOR | C175: 06-CODIGO DEL TRABAJO - CT | D175: 7.1.01.06 | E175: N/A | F175: 470.00 | G175: 5,640.00 | H175: 39.17 | I175: 39.17 | J175: 0.00 | K175: 0.00 | L175: 548.33
A176: 185 | B176: CHOFER 2 | C176: 06-CODIGO DEL TRABAJO - CT | D176: 7.1.01.06 | E176: N/A | F176: 528.00 | G176: 6,336.00 | H176: 44.00 | I176: 39.17 | J176: 0.00 | K176: 0.00 | L176: 611.17
A177: 186 | B177: AUXILIAR DE SERVICIOS BARRIDO Y RECOLECCION | C177: 06-CODIGO DEL TRABAJO - CT | D177: 7.1.01.06 | E177: N/A | F177: 460.00 | G177: 5,520.00 | H177: 38.33 | I177: 39.17 | J177: 0.00 | K177: 0.00 | L177: 537.50
A178: 187 | B178: ALBAÑIL 5 | C178: 06-CODIGO DEL TRABAJO - CT | D178: 7.1.01.06 | E178: N/A | F178: 531.00 | G178: 6,372.00 | H178: 44.25 | I178: 39.17 | J178: 0.00 | K178: 0.00 | L178: 614.42
A179: 188 | B179: AUXILIAR DE SERVICIOS BARRIDO Y RECOLECCIÓN | C179: 06-CODIGO DEL TRABAJO - CT | D179: 7.1.01.06 | E179: N/A | F179: 708.00 | G179: 8,496.00 | H179: 59.00 | I179: 39.17 | J179: 0.00 | K179: 0.00 | L179: 806.17
A180: 189 | B180: AUXILIAR DE SERVICIOS BARRIDO Y RECOLECCIÓN | C180: 06-CODIGO DEL TRABAJO - CT | D180: 7.1.01.06 | E180: N/A | F180: 460.00 | G180: 5,520.00 | H180: 38.33 | I180: 39.17 | J180: 0.00 | K180: 0.00 | L180: 537.50
A181: 190 | B181: AYUDANTE DEL TALLER 2 | C181: 06-CODIGO DEL TRABAJO - CT | D181: 5.1.01.06 | E181: N/A | F181: 531.00 | G181: 6,372.00 | H181: 44.25 | I181: 39.17 | J181: 0.00 | K181: 0.00 | L181: 614.42
A182: 191 | B182: CHOFER DE VOLQUETA | C182: 06-CODIGO DEL TRABAJO - CT | D182: 7.1.01.06 | E182: N/A | F182: 566.00 | G182: =F182*12 -> 6,792.00 | H182: =F182/12 -> 47.17 | I182: 39.17 | J182: 0.00 | K182: 0.00 | L182: =F182+H182+I182 -> 652.33
A183: 192 | B183: AUXILIAR DE SERVICIOS BARRIDO Y RECOLECCION | C183: 06-CODIGO DEL TRABAJO - CT | D183: 7.1.01.06 | E183: N/A | F183: 566.00 | G183: 6,792.00 | H183: 47.17 | I183: 39.17 | J183: 0.00 | K183: 0.00 | L183: 652.33
A184: 193 | B184: OPERADOR CARGADORA | C184: 06-CODIGO DEL TRABAJO - CT | D184: 7.1.01.06 | E184: N/A | F184: 584.00 | G184: 7,008.00 | H184: 48.67 | I184: 39.17 | J184: 0.00 | K184: 0.00 | L184: 671.83
A185: 194 | B185: AUXILIAR DE SERVICIOS DE RECOLECTOR | C185: 06-CODIGO DEL TRABAJO - CT | D185: 7.1.01.06 | E185: N/A | F185: 584.00 | G185: 7,008.00 | H185: 48.67 | I185: 39.17 | J185: 0.00 | K185: 0.00 | L185: 671.83
A186: 195 | B186: AUXILIAR DE SERVICIOS BARRENDERO | C186: 06-CODIGO DEL TRABAJO - CT | D186: 7.1.01.06 | E186: N/A | F186: 460.00 | G186: 5,520.00 | H186: 38.33 | I186: 39.17 | J186: 0.00 | K186: 0.00 | L186: 537.50
A187: 196 | B187: AYUDANTE DEL TRATOR DE ORUGA | C187: 06-CODIGO DEL TRABAJO - CT | D187: 7.1.01.06 | E187: N/A | F187: 531.00 | G187: 6,372.00 | H187: 44.25 | I187: 39.17 | J187: 0.00 | K187: 0.00 | L187: 614.42
A188: 197 | B188: AUXILIAR SERVICIOS | C188: 06-CODIGO DEL TRABAJO - CT | D188: 7.1.01.06 | E188: N/A | F188: 570.00 | G188: 6,840.00 | H188: 47.50 | I188: 39.17 | J188: 0.00 | K188: 0.00 | L188: 656.67
A189: 198 | B189: AUXILIAR DE SERVICIOS BARRIDO Y RECOLECCIÓN | C189: 06-CODIGO DEL TRABAJO - CT | D189: 7.1.01.06 | E189: N/A | F189: 566.00 | G189: 6,792.00 | H189: 47.17 | I189: 39.17 | J189: 0.00 | K189: 0.00 | L189: 652.33
A190: 199 | B190: BARRENDERO 6 | C190: 06-CODIGO DEL TRABAJO - CT | D190: 7.1.01.06 | E190: N/A | F190: 584.00 | G190: 7,008.00 | H190: 48.67 | I190: 39.17 | J190: 0.00 | K190: 0.00 | L190: 671.83
A191: 200 | B191: AUXILIAR DE SERVICIOS LIMPEZA | C191: 06-CODIGO DEL TRABAJO - CT | D191: 7.1.01.06 | E191: N/A | F191: 540.00 | G191: 6,480.00 | H191: 45.00 | I191: 39.17 | J191: 0.00 | K191: 0.00 | L191: 624.17
A192: 201 | B192: GUARDIAN DE PARQUES | C192: 06-CODIGO DEL TRABAJO - CT | D192: 7.1.01.06 | E192: N/A | F192: 460.00 | G192: 5,520.00 | H192: 38.33 | I192: 39.17 | J192: 0.00 | K192: 0.00 | L192: 537.50
A193: 202 | B193: GUARDIA DEL TALLER | C193: 06-CODIGO DEL TRABAJO - CT | D193: 7.1.01.06 | E193: N/A | F193: 460.00 | G193: 5,520.00 | H193: 38.33 | I193: 39.17 | J193: 0.00 | K193: 0.00 | L193: 537.50
A194: 203 | B194: CHOFER 9 | C194: 06-CODIGO DEL TRABAJO - CT | D194: 7.1.01.06 | E194: N/A | F194: 460.00 | G194: 5,520.00 | H194: 38.33 | I194: 39.17 | J194: 0.00 | K194: 0.00 | L194: 537.50
A195: 204 | B195: CHOFER 9 | C195: 06-CODIGO DEL TRABAJO - CT | D195: 7.1.01.06 | E195: N/A | F195: 708.00 | G195: 8,496.00 | H195: 59.00 | I195: 39.17 | J195: 0.00 | K195: 0.00 | L195: 806.17
A196: 205 | B196: MATARIFE 1 | C196: 06-CODIGO DEL TRABAJO - CT | D196: 7.1.01.06 | E196: N/A | F196: 460.00 | G196: 5,520.00 | H196: 38.33 | I196: 39.17 | J196: 0.00 | K196: 0.00 | L196: 537.50
A197: 206 | B197: GUARDIAN PARQUERO | C197: 06-CODIGO DEL TRABAJO - CT | D197: 7.1.01.06 | E197: N/A | F197: 460.00 | G197: 5,520.00 | H197: 38.33 | I197: 39.17 | J197: 0.00 | K197: 0.00 | L197: 537.50
A198: 207 | B198: CHOFER MUNICIPAL | C198: 06-CODIGO DEL TRABAJO - CT | D198: 7.1.01.06 | E198: N/A | F198: 460.00 | G198: 5,520.00 | H198: 38.33 | I198: 39.17 | J198: 0.00 | K198: 0.00 | L198: 537.50
A199: 208 | B199: AUXILIAR DE SERVICIOS | C199: 06-CODIGO DEL TRABAJO - CT | D199: 7.1.01.06 | E199: N/A | F199: 531.00 | G199: 6,372.00 | H199: 44.25 | I199: 39.17 | J199: 0.00 | K199: 0.00 | L199: 614.42
A200: 209 | B200: OPERADOR DEL TRACTOR | C200: 06-CODIGO DEL TRABAJO - CT | D200: 7.1.01.06 | E200: N/A | F200: 460.00 | G200: 5,520.00 | H200: 38.33 | I200: 39.17 | J200: 0.00 | K200: 0.00 | L200: 537.50
... 10 more rows

Sheet 1.Metadatos (remuneración)
A1: FECHA ACTUALIZACIÓN DE LA INFORMACIÓN | B1: 2025-06-30
A2: PERIODICIDAD DE ACTUALIZACIÓN DE LA INFORMACIÓN | B2: MENSUAL
A3: UNIDAD POSEEDORA DE LA INFORMACION | B3: ÁREA ADMINISTRATIVA FINANCIERA
A4: PERSONA RESPONSABLE DE LA UNIDAD POSEEDORA DE LA INFORMACIÓN | B4: LIC. MARITZA ALVARADO BRITO
A5: CORREO ELECTRÓNICO DE LA PERSONA RESPONSABLE DE LA UNIDAD POSEEDORA DE LA INFORMACIÓN | B5: gadmch.financiero@gmail.com
A6: NÚMERO TELEFÓNICO DE LA PERSONA RESPONSABLE DE LA UNIDAD POSEEDORA DE LA INFORMACIÓN | B6: (02)936-244 ext 108
A7: LICENCIA | B7: CC-BY-4.0

Sheet 1.Diccionario (remuneración)
A1: Institución | B1: GAD MUNICIPAL DEL CANTÓN CHUNCHI
A2: Descripción | B2: Remuneraciones salariales, licencia de servicio y comisión de servicio
A3: Nombre del Campo | B3: Descripción del campo
A4: Numeración | B4: Número secuencial que identifica cada línea de los datos
A5: Puesto Institucional | B5: Puesto ocupado por la persona servidora pública correspondiente
A6: Régimen laboral al que pertenece | B6: Conjunto de leyes, normas y regulaciones que rigen la relación de trabajo
A7: Número de partida presupuestaria | B7: Asignación presupuestaria específica que se destina para cubrir los gastos relacionados con el salario
A8: Grado jerárquico o escala al que pertenece el puesto | B8: Posición relativa del puesto dentro de una estructura organizativa o jerárquica
A9: Remuneración mensual unificada | B9: Salario mensual correspondiente al pago de la persona servidora pública
A10: Remuneración unificada (anual) | B10: Salario anual correspondiente al pago de la persona servidora pública
A11: Décimo Tercera Remuneración | B11: Salario adicional equivalente a un mes de salario completo, calculado sobre la base del promedio mensual de las remuneraciones percibidas por la persona servidora pública durante el año fiscal.
A12: Décima Cuarta Remuneración | B12: Salario adicional equivalente a un mes de salario completo, que se paga a la persona servidora pública en dos cuotas durante el año
A13: Horas suplementarias y extraordinarias | B13: Horas trabajadas que exceden la jornada laboral establecida en el contrato de trabajo, pero que no superan el límite legal establecido
A14: Encargos y subrogaciones | B14: Situaciones en las que un empleado asume temporalmente las responsabilidades y funciones de otra persona funcionaria o de un cargo superior debido a circunstancias específicas.
A15: Total ingresos adicionales | B15: Suma total de los ingresos que la persona servidora pública recibe además de su salario base o remuneración principal.
